bitfinex/quotes_ETHUSD_20240719
["timestamp","ask_amount","ask_price","bid_price","bid_amount"]
[1721415338230,5.85014,3508.6,3508.2,5.7009]
[1721415338404,3.0,3508.6,3508.2,5.7009]
[1721415338729,5.4884,3508.7,3508.2,5.7009]
[1721415339091,2.4884,3508.7,3508.2,5.7009]
[1721415340909,2.4884,3508.7,3508.3,0.04016771]
[1721415341321,2.4884,3508.7,3508.2,5.7009]
[1721415341732,2.4884,3508.7,3508.3,0.04016771]
[1721415342230,2.4884,3508.7,3508.2,5.7009]
[1721415342542,2.4884,3508.7,3508.3,0.04016771]
[1721415342742,2.4884,3508.7,3508.2,5.7009]
[1721415342920,2.4884,3508.7,3508.3,0.04016771]
[1721415343123,2.4884,3508.7,3508.2,5.7009]
[1721415346140,5.33851,3508.7,3508.2,5.7009]
[1721415346435,0.833851,3508.6,3508.2,5.7009]
[1721415346640,6.684001,3508.6,3508.2,5.7009]
[1721415349220,5.85015,3508.6,3508.2,5.7009]
[1721415350107,5.84931017,3508.6,3508.2,5.7009]
[1721415353728,2.85022,3508.5,3508.2,5.7009]
[1721415354248,1.055,3508.3,3508.2,5.7009]
[1721415354809,6.17568,3508.3,3508.2,5.7009]
[1721415355038,12.94354402,3508.3,3508.2,5.7009]
[1721415358054,11.88854402,3508.3,3508.2,5.7009]
[1721415358345,9.17568,3508.3,3508.2,5.7009]
[1721415358639,8.12068,3508.3,3508.2,5.7009]
[1721415358817,9.17568,3508.3,3508.2,5.7009]
[1721415359251,5.85038,3508.3,3508.2,5.7009]
[1721415359545,3.0,3508.3,3508.2,5.7009]
[1721415359755,3.0,3508.3,3508.2,6.27099]
[1721415359936,4.055,3508.5,3508.2,6.31121461]
[1721415360148,1.055,3508.5,3508.2,5.74112461]
[1721415361210,1.055,3508.3,3508.2,5.74112461]
[1721415361655,4.055,3508.3,3508.2,5.7009]
[1721415361852,4.055,3508.3,3508.2,5.74112882]
[1721415362049,3.0,3508.3,3508.2,5.74112882]
[1721415362234,2.4187,3508.4,3508.2,5.74112882]
[1721415362619,2.484,3508.7,3508.2,6.3152417]
[1721415365324,5.33406,3508.7,3508.2,5.74112882]
[1721415365545,3.0,3508.6,3508.2,5.74112882]
[1721415369135,5.8502,3508.6,3508.2,5.74112882]
[1721415370534,2.85023,3508.5,3508.2,5.74112882]
[1721415370731,3.0,3508.4,3508.2,5.74112882]
[1721415371357,3.0,3508.6,3508.2,5.74112882]
[1721415371737,2.484,3508.7,3508.2,5.74112882]
[1721415371940,2.484,3508.7,3508.3,0.57411288]
[1721415372671,2.484,3508.7,3508.4,0.04019779]
[1721415373275,2.484,3508.7,3508.2,5.7009]
[1721415373576,2.484,3508.7,3508.3,0.04022382]
[1721415373877,2.484,3508.7,3508.2,5.7009]
[1721415374195,3.0,3508.8,3508.3,0.04022382]
[1721415374378,3.0,3508.8,3508.2,6.27099]
[1721415374685,3.0,3508.8,3508.3,0.04022382]
[1721415375070,3.0,3508.8,3508.2,6.27099]
[1721415375381,3.0,3508.8,3508.4,0.04019779]
[1721415375582,3.0,3508.8,3508.2,6.27099]
[1721415375583,3.0,3508.8,3508.3,0.04022382]
[1721415375787,3.0,3508.8,3508.5,0.04017176]
[1721415375946,3.0,3508.8,3508.6,0.04014573]
[1721415376144,3.0,3508.8,3508.2,5.7009]
[1721415376345,3.0,3508.8,3508.3,0.04022242]
[1721415376593,3.0,3508.8,3508.2,6.512]
[1721415376745,3.0,3508.8,3508.3,0.04022242]
[1721415376947,3.0,3508.8,3508.2,6.512]
[1721415377284,3.0,3508.8,3508.3,0.04022242]
[1721415377656,3.0,3508.8,3508.2,6.512]
[1721415377874,3.0,3508.8,3508.4,0.03821332]
[1721415378070,3.0,3508.8,3508.3,0.04015631]
[1721415378276,3.0,3508.8,3508.5,0.04010426]
[1721415378474,3.0,3508.8,3508.4,0.04013028]
[1721415378665,3.0,3508.8,3508.6,0.04007823]
[1721415378982,3.0,3508.8,3508.5,0.04010426]
[1721415379195,3.0,3508.8,3508.2,5.7009]
[1721415379478,3.0,3508.8,3508.3,0.04015631]
[1721415379884,3.0,3508.8,3508.2,5.7009]
[1721415380050,3.0,3508.8,3508.4,0.04012467]
[1721415380247,3.0,3508.8,3508.3,0.0401507]
[1721415380685,3.0,3508.8,3508.2,5.7009]
[1721415380908,3.0,3508.8,3508.4,0.04012467]
[1721415381066,3.0,3508.8,3508.3,0.0401507]
[1721415381268,3.0,3508.8,3508.5,0.04009864]
[1721415381583,3.0,3508.8,3508.6,0.04007262]
[1721415382094,3.0,3508.8,3508.7,0.04004659]
[1721415382304,4.055,3508.8,3508.7,0.04004659]
[1721415382470,4.055,3508.8,3508.2,5.7009]
[1721415382787,1.055,3508.5,3508.2,5.7009]
[1721415385461,1.055,3508.5,3508.3,0.0401507]
[1721415385897,1.055,3508.5,3508.2,5.7009]
[1721415386103,1.055,3508.5,3508.4,0.04012467]
[1721415386596,1.055,3508.5,3508.2,5.7009]
[1721415386801,1.055,3508.3,3508.2,5.7009]
[1721415387364,3.90538,3508.3,3508.2,5.7009]
[1721415387566,6.90538,3508.3,3508.2,5.7009]
[1721415389385,3.0,3508.3,3508.2,5.7009]
[1721415389599,1.055,3508.3,3508.2,5.7009]
[1721415389796,3.0,3508.3,3508.2,5.7009]
[1721415389992,3.0,3508.5,3508.2,5.7009]
[1721415390307,1.055,3508.5,3508.2,5.7009]
[1721415390603,1.055,3508.3,3508.2,5.7009]
[1721415391566,3.4011,3508.3,3508.2,5.7009]
[1721415391791,6.4011,3508.3,3508.2,5.7009]
[1721415392178,6.4011,3508.3,3508.2,5.74112304]
[1721415396013,3.0,3508.3,3508.2,5.74112304]
[1721415396168,3.0,3508.5,3508.2,5.74112304]
[1721415396601,3.0,3508.6,3508.2,5.74112304]
[1721415397308,4.055,3508.6,3508.2,5.74112304]
[1721415397720,1.055,3508.4,3508.2,5.74112304]
[1721415397904,2.3215,3508.3,3508.2,5.74112304]
[1721415398281,2.3215,3508.3,3508.2,5.7009]
[1721415398600,5.3215,3508.3,3508.2,5.74114127]
[1721415399336,1.055,3508.4,3508.2,5.74114127]
[1721415399505,6.23263,3508.6,3508.2,5.74114127]
[1721415399692,1.055,3508.5,3508.2,5.74114127]
[1721415399892,1.055,3508.5,3508.2,5.7009]
[1721415400528,1.055,3508.5,3508.3,0.04021524]
[1721415400894,5.31,3508.6,3508.2,5.7009]
[1721415401096,5.31,3508.6,3508.4,0.04018921]
[1721415401290,5.31,3508.6,3508.3,0.04021524]
[1721415401605,5.31,3508.6,3508.4,0.04018921]
[1721415402103,5.31,3508.6,3508.2,5.7009]
[1721415402303,3.365,3508.6,3508.5,0.04016318]
[1721415402512,3.0,3508.6,3508.2,5.7009]
[1721415402715,1.055,3508.6,3508.2,6.27099]
[1721415403094,4.055,3508.8,3508.3,0.04021524]
[1721415403311,1.055,3508.6,3508.3,0.04021524]
[1721415403522,4.055,3508.6,3508.2,5.7009]
[1721415403730,4.055,3508.6,3508.4,0.04018921]
[1721415403924,4.055,3508.6,3508.3,0.04021524]
[1721415404129,3.0,3508.6,3508.5,0.04016318]
[1721415404340,3.0,3508.7,3508.4,0.04018921]
[1721415404532,3.0,3508.7,3508.5,0.04016318]
[1721415404908,3.0,3508.7,3508.2,5.7009]
[1721415405110,3.0,3508.7,3508.6,0.04013715]
[1721415405409,4.22008,3508.7,3508.2,5.7009]
[1721415405611,3.0,3508.7,3508.3,0.04021524]
[1721415405835,3.0,3508.7,3508.2,5.7009]
[1721415406046,3.0,3508.7,3508.4,0.04018921]
[1721415406348,3.0,3508.7,3508.3,0.04021524]
[1721415406552,3.0,3508.7,3508.5,0.04016318]
[1721415406735,3.39933863,3508.7,3508.4,0.04018921]
[1721415406940,3.39933863,3508.7,3508.6,0.04013715]
[1721415407122,6.24939863,3508.7,3508.5,0.04016318]
[1721415407321,6.24939863,3508.7,3508.2,5.7009]
[1721415407322,1.055,3508.6,3508.2,5.7009]
[1721415407853,6.90506,3508.7,3508.2,5.7009]
[1721415408839,3.0,3508.7,3508.2,5.7009]
[1721415409156,1.055,3508.8,3508.2,5.7009]
[1721415409382,4.055,3508.8,3508.2,5.7009]
[1721415411756,4.38338076,3508.8,3508.2,5.7009]
[1721415411952,7.23340076,3508.8,3508.2,5.7009]
[1721415412478,4.38338076,3508.8,3508.2,5.7009]
[1721415413854,3.32838076,3508.8,3508.2,5.7009]
[1721415414056,3.0,3508.8,3508.2,5.7009]
[1721415414265,5.446,3508.9,3508.2,5.7009]
[1721415416688,5.446,3508.9,3508.3,0.04017875]
[1721415418246,1.055,3508.8,3508.3,0.04017875]
[1721415418454,4.055,3508.8,3508.3,0.04017875]
[1721415418665,3.0,3508.8,3508.3,0.57410787]
[1721415418886,5.446,3508.9,3508.4,0.04015272]
[1721415419476,5.446,3508.9,3508.3,2.4204]
[1721415419682,5.446,3508.9,3508.5,0.04012669]
[1721415419877,5.446,3508.9,3508.4,0.04015272]
[1721415420084,3.0,3508.9,3508.6,0.04010066]
[1721415420288,3.0,3508.9,3508.5,0.04012669]
[1721415420454,3.0,3508.9,3508.7,0.04007463]
[1721415420660,3.0,3508.9,3508.6,0.04007263]
[1721415420885,3.0,3508.9,3508.3,2.4204]
[1721415420886,3.0,3508.9,3508.8,0.04002058]
[1721415421084,3.0,3508.9,3508.7,0.0400466]
[1721415421408,3.0,3508.9,3508.3,2.4204]
[1721415421691,3.0,3508.9,3508.4,0.91763]
[1721415421993,3.4289,3509.1,3508.4,0.95775468]
[1721415421994,3.0,3509.0,3508.4,0.95775468]
[1721415422496,2.3739,3509.1,3508.4,0.95775468]
[1721415424073,3.0,3509.2,3508.5,1.055]
[1721415424277,1.46089653,3509.3,3508.6,0.44331547]
[1721415424592,1.46089653,3509.3,3508.6,0.48336285]
[1721415426313,1.46089653,3509.3,3508.8,2.349]
[1721415426475,4.46089653,3509.3,3508.8,2.349]
[1721415426663,1.46089653,3509.3,3508.9,0.0399693]
[1721415426995,1.46089653,3509.3,3508.9,0.89320778]
[1721415428473,4.46089653,3509.3,3508.9,0.89320778]
[1721415432373,1.46089653,3509.3,3508.9,0.89320778]
[1721415433483,1.46089653,3509.3,3508.9,0.0399693]
[1721415433806,1.055,3509.0,3508.9,0.0399693]
[1721415434009,4.055,3509.0,3508.7,5.7001]
[1721415434312,7.31046653,3509.3,3508.9,1.055]
[1721415434313,1.46089653,3509.3,3508.9,1.055]
[1721415434600,2.50059575,3509.9,3509.0,6.903507]
[1721415434811,1.43374612,3509.6,3509.0,6.903507]
[1721415435128,1.43374612,3509.6,3509.1,0.03456448]
[1721415435278,1.41165956,3509.8,3509.1,0.03456448]
[1721415435792,1.43374612,3509.6,3509.1,0.03456448]
[1721415435962,1.41549928,3509.4,3509.1,0.03456448]
[1721415437467,2.51589653,3509.3,3509.1,0.03456448]
[1721415439366,1.41549928,3509.4,3509.1,0.03456448]
[1721415439599,1.055,3509.2,3509.1,0.03456448]
[1721415439983,4.055,3509.2,3509.1,0.03456448]
[1721415442790,6.4413,3509.2,3509.1,0.03456448]
[1721415443226,9.29095,3509.2,3509.1,0.03456448]
[1721415443386,12.1406,3509.2,3509.1,0.03456448]
[1721415443591,13.50074965,3509.2,3509.1,0.03456448]
[1721415447027,12.44574965,3509.2,3509.1,0.03456448]
[1721415447222,13.50074965,3509.2,3509.1,0.03456448]
[1721415447627,12.44574965,3509.2,3509.1,0.03456448]
[1721415447997,3.0,3509.2,3509.1,0.03456448]
[1721415448222,1.46089653,3509.3,3509.1,0.03456448]
[1721415448531,4.46089653,3509.3,3509.1,0.03456448]
[1721415448895,1.055,3509.2,3509.1,0.03456448]
[1721415449095,4.055,3509.2,3509.1,0.03456448]
[1721415455131,6.90465,3509.2,3509.1,0.03456448]
[1721415457231,3.0,3509.2,3509.1,0.03456448]
[1721415458033,3.04947182,3509.2,3509.1,0.03456448]
[1721415462241,0.04947182,3509.2,3509.1,0.03456448]
[1721415463274,2.89912182,3509.2,3509.1,0.03456448]
[1721415463545,9.11173604,3509.2,3509.1,0.03456448]
[1721415467131,8.34592182,3509.2,3509.1,0.03456448]
[1721415468058,3.04947182,3509.2,3509.1,0.03456448]
[1721415468215,0.04947182,3509.2,3509.1,0.03456448]
[1721415473057,2.46827182,3509.2,3509.1,0.03456448]
[1721415473348,6.37292182,3509.2,3509.1,0.03456448]
[1721415474050,5.31792182,3509.2,3509.1,0.03456448]
[1721415474592,0.04947182,3509.2,3509.1,0.03456448]
[1721415474853,0.04947182,3509.2,3509.1,0.60798093]
[1721415478952,0.04947182,3509.2,3509.1,0.03456448]
[1721415479152,5.35412182,3509.2,3509.1,0.03456448]
[1721415479322,5.35412182,3509.2,3509.0,5.6996]
[1721415479742,2.50447182,3509.2,3509.0,5.6996]
[1721415480155,0.04947182,3509.2,3509.0,5.6996]
[1721415480588,0.04947182,3509.2,3509.1,0.02900485]
[1721415483882,1.46089653,3509.3,3509.1,0.60186534]
[1721415492323,1.42997767,3509.7,3509.1,0.60186534]
[1721415492681,1.42997767,3509.7,3509.1,0.02900485]
[1721415502011,1.43773285,3509.5,3509.1,0.02900485]
[1721415504236,2.49173285,3509.5,3509.1,0.02900485]
[1721415504539,1.46089653,3509.3,3509.1,0.02900485]
[1721415510226,1.46089653,3509.3,3509.1,0.60186534]
[1721415511035,1.46089653,3509.3,3509.1,2.94056534]
[1721415512350,1.46089653,3509.3,3509.1,0.60186534]
[1721415517372,1.46089653,3509.3,3509.1,0.02900485]
[1721415519166,1.46089653,3509.3,3509.2,5.6993]
[1721415519343,1.46089653,3509.3,3509.2,5.72719458]
[1721415519669,1.46089653,3509.3,3509.2,5.74526988]
[1721415521597,3.86939653,3509.3,3509.2,5.74526988]
[1721415526560,1.46089653,3509.3,3509.2,5.74526988]
[1721415534395,1.60567128,3509.3,3509.2,5.74526988]
[1721415535316,1.46089653,3509.3,3509.2,5.74526988]
[1721415537022,4.3305557,3509.3,3509.2,5.74526988]
[1721415537208,3.94309653,3509.3,3509.2,5.74526988]
[1721415542637,9.64223653,3509.3,3509.2,5.74526988]
[1721415542928,12.64223653,3509.3,3509.2,5.74526988]
[1721415543304,9.79266653,3509.3,3509.2,5.74526988]
[1721415543529,11.06183669,3509.3,3509.2,5.74526988]
[1721415545704,13.91140669,3509.3,3509.2,5.74526988]
[1721415546638,13.91140669,3509.3,3509.2,5.72718758]
[1721415546796,14.96540669,3509.3,3509.2,5.72718758]
[1721415548614,11.06183669,3509.3,3509.2,5.72718758]
[1721415549020,8.21226669,3509.3,3509.2,5.72718758]
[1721415549737,6.94309653,3509.3,3509.2,5.72718758]
[1721415549950,4.46089653,3509.3,3509.2,5.72718758]
[1721415550356,1.46089653,3509.3,3509.2,5.72718758]
[1721415551032,3.71449653,3509.3,3509.2,5.72718758]
[1721415551250,6.71449653,3509.3,3509.2,5.72718758]
[1721415551460,8.11106117,3509.3,3509.2,5.72718758]
[1721415554904,13.81020117,3509.3,3509.2,5.72718758]
[1721415558513,8.11106117,3509.3,3509.2,5.72718758]
[1721415559474,10.96063117,3509.3,3509.2,5.72718758]
[1721415562113,12.01463117,3509.3,3509.2,5.72718758]
[1721415564735,12.01463117,3509.3,3509.2,5.699293]
[1721415565027,12.01463117,3509.3,3509.2,5.72731936]
[1721415565802,14.86420117,3509.3,3509.2,5.72731936]
[1721415568323,10.96063117,3509.3,3509.2,5.72731936]
[1721415568725,10.96063117,3509.3,3509.2,5.699293]
[1721415569133,10.96063117,3509.3,3509.2,5.72732497]
[1721415570125,13.81020117,3509.3,3509.2,5.72732497]
[1721415580391,14.86420117,3509.3,3509.2,5.72732497]
[1721415585853,12.61060117,3509.3,3509.2,5.72732497]
[1721415586188,12.61060117,3509.3,3509.2,5.699293]
[1721415586488,12.61060117,3509.3,3509.2,5.72732497]
[1721415587806,11.55660117,3509.3,3509.2,5.72732497]
[1721415587957,8.70703117,3509.3,3509.2,5.72732497]
[1721415588152,1.46089653,3509.3,3509.2,5.72732497]
[1721415589077,1.41165956,3509.8,3509.2,5.72732497]
[1721415589293,1.41165956,3509.8,3509.6,2.3548]
[1721415589666,1.41165956,3509.8,3509.7,0.02784861]
[1721415590672,1.41165956,3509.8,3509.2,8.126593]
[1721415591004,4.26081956,3509.8,3509.3,0.9180593]
[1721415591173,4.26081956,3509.8,3509.4,0.02792665]
[1721415592068,1.10365046,3509.9,3509.2,5.699293]
[1721415592069,1.43374612,3509.6,3509.2,5.699293]
[1721415592272,1.46089653,3509.3,3509.2,5.699293]
[1721415592619,5.36446653,3509.3,3509.2,5.699293]
[1721415592790,4.31046653,3509.3,3509.2,5.699293]
[1721415593988,8.35751318,3509.3,3509.2,5.699293]
[1721415594310,9.41151318,3509.3,3509.2,5.699293]
[1721415594673,12.26108318,3509.3,3509.2,5.699293]
[1721415595312,12.4055901,3509.3,3509.2,5.699293]
[1721415597526,9.5560201,3509.3,3509.2,5.699293]
[1721415597727,7.45497345,3509.3,3509.2,5.699293]
[1721415599026,4.60540345,3509.3,3509.2,5.699293]
[1721415599193,1.60540345,3509.3,3509.2,5.699293]
[1721415599594,1.60545319,3509.3,3509.2,5.699293]
[1721415601050,1.43773285,3509.5,3509.2,5.699293]
[1721415601341,2.4518,3509.8,3509.2,6.3746223]
[1721415601342,1.41165956,3509.8,3509.2,6.3746223]
[1721415601659,1.41165956,3509.8,3509.7,1.054]
[1721415601939,1.41165956,3509.8,3509.7,5.7019]
[1721415602239,1.41165956,3509.8,3509.7,5.6364]
[1721415602446,1.41165956,3509.8,3509.7,5.5668]
[1721415603169,4.26081956,3509.8,3509.7,5.5668]
[1721415603475,7.19955056,3509.8,3509.7,5.5668]
[1721415603629,10.19955056,3509.8,3509.7,5.5668]
[1721415603818,7.35039056,3509.8,3509.7,5.5668]
[1721415604014,6.90425956,3509.8,3509.7,5.5668]
[1721415604619,9.75341956,3509.8,3509.7,5.5668]
[1721415605936,6.90425956,3509.8,3509.7,5.5668]
[1721415606458,4.41165956,3509.8,3509.7,5.5668]
[1721415606755,1.96165956,3509.8,3509.7,5.5668]
[1721415608129,4.96165956,3509.8,3509.7,5.5668]
[1721415609233,1.41165956,3509.8,3509.7,5.5668]
[1721415610163,4.41165956,3509.8,3509.7,5.5668]
[1721415611264,14.29183356,3509.8,3509.7,5.5668]
[1721415611586,13.03587956,3509.8,3509.7,5.5668]
[1721415611772,10.18671956,3509.8,3509.7,5.5668]
[1721415612278,7.33755956,3509.8,3509.7,5.5668]
[1721415612971,10.18671956,3509.8,3509.7,5.5668]
[1721415615555,4.41165956,3509.8,3509.7,5.5668]
[1721415615819,4.41165956,3509.8,3509.7,6.12348]
[1721415615820,1.41165956,3509.8,3509.7,6.12348]
[1721415617504,1.41165956,3509.8,3509.7,6.15123608]
[1721415618295,1.41165956,3509.8,3509.7,11.27477608]
[1721415618518,0.1512552,3510.5,3509.7,8.42553608]
[1721415618519,1.42903521,3510.4,3509.7,8.42553608]
[1721415618687,1.42903521,3510.4,3509.8,4.22953361]
[1721415618883,1.4874322,3510.2,3509.9,8.3951]
[1721415619187,1.4874322,3510.2,3509.9,5.89371576]
[1721415619386,0.29815369,3510.3,3509.9,0.18523386]
[1721415619916,0.1512552,3510.5,3509.9,0.18523386]
[1721415620291,0.1512552,3510.5,3510.2,2.4688]
[1721415620489,0.1512552,3510.5,3510.3,11.574]
[1721415620694,0.1512552,3510.5,3510.3,11.60231357]
[1721415620900,0.1512552,3510.5,3510.4,1.94490236]
[1721415621225,0.1512552,3510.5,3510.4,1.97318807]
[1721415621409,0.1512552,3510.5,3510.4,16.39585807]
[1721415622618,0.1512552,3510.5,3510.4,19.24452807]
[1721415622822,0.04964319,3511.6,3510.5,2.84854]
[1721415623020,0.04964319,3511.6,3510.6,12.18387408]
[1721415623175,0.04964319,3511.6,3510.6,12.21668125]
[1721415624292,0.04964319,3511.6,3510.6,15.06518125]
[1721415625260,0.04964319,3511.6,3510.8,2.84834]
[1721415625463,0.04964319,3511.6,3510.9,11.573]
[1721415625751,0.04964319,3511.6,3511.0,1.68755147]
[1721415625935,0.04964319,3511.6,3511.1,11.573]
[1721415626135,0.04964319,3511.6,3511.1,11.60564471]
[1721415628055,5.69604,3511.2,3511.1,11.60564471]
[1721415628264,5.69604,3511.2,3511.1,11.61445515]
[1721415628551,13.26618123,3511.2,3511.1,5.10764022]
[1721415628748,15.69678123,3511.2,3511.1,5.06618507]
[1721415628988,15.99689922,3511.2,3511.1,5.06618507]
[1721415629186,15.93454331,3511.2,3511.1,5.06618507]
[1721415629564,9.66160602,3511.2,3511.1,5.06618507]
[1721415629879,3.55,3511.2,3511.1,5.06618507]
[1721415630054,0.55,3511.2,3511.1,5.06618507]
[1721415630256,3.0,3511.2,3511.1,5.06618507]
[1721415630484,3.0,3511.5,3511.1,5.06618507]
[1721415630657,0.04964319,3511.6,3511.1,5.06618507]
[1721415630859,0.04964319,3511.6,3511.2,0.50661851]
[1721415631298,0.04964319,3511.6,3511.3,18.079]
[1721415638289,0.04964319,3511.6,3511.4,0.05695006]
[1721415638461,2.84694,3512.6,3511.3,18.079]
[1721415638678,0.04963096,3512.4,3511.4,2.09271]
[1721415638978,2.84681,3512.7,3511.4,2.09271]
[1721415639460,5.31580253,3512.9,3511.4,2.09271]
[1721415639661,5.31580253,3512.9,3511.4,4.94057]
[1721415639994,0.04963253,3512.9,3511.7,2.84762]
[1721415640497,0.04963253,3512.9,3511.8,20.92551]
[1721415640864,0.04963253,3512.9,3511.9,2.84743]
[1721415641097,0.04963253,3512.9,3512.0,18.078]
[1721415641318,0.04963253,3512.9,3512.1,0.05693141]
[1721415641479,2.84585,3513.9,3512.1,0.05693141]
[1721415641480,2.84557,3514.3,3512.8,2.84673]
[1721415641687,0.222231,3514.0,3512.9,18.13291806]
[1721415642011,0.222231,3514.0,3512.9,18.076]
[1721415642012,2.84593,3513.8,3512.9,18.076]
[1721415642168,0.222231,3514.0,3512.9,18.076]
[1721415642791,2.84585,3513.9,3512.9,18.076]
[1721415643102,2.529,3513.7,3512.9,18.076]
[1721415643306,2.84608,3513.6,3512.9,18.076]
[1721415643514,2.8461,3513.6,3512.9,18.076]
[1721415643719,2.529,3513.7,3512.9,18.076]
[1721415643720,5.84617,3513.5,3512.9,18.076]
[1721415644005,2.84633,3513.3,3512.9,18.076]
[1721415644208,0.55,3513.2,3512.9,18.076]
[1721415644424,5.37534,3513.3,3512.9,18.076]
[1721415644567,0.694625,3513.2,3512.9,18.076]
[1721415644769,6.541085,3513.2,3512.9,18.076]
[1721415644968,2.84655,3513.1,3512.9,18.076]
[1721415645321,5.69312,3513.0,3512.9,18.076]
[1721415645464,9.8847945,3513.0,3512.9,18.076]
[1721415646295,7.0382345,3513.0,3512.9,18.076]
[1721415646625,7.5882345,3513.0,3512.9,18.076]
[1721415646963,4.7416745,3513.0,3512.9,18.076]
[1721415647167,5.8465,3513.1,3512.9,18.076]
[1721415647364,3.0,3513.1,3512.9,18.076]
[1721415647806,3.0,3513.6,3512.9,18.076]
[1721415648011,2.84618,3513.5,3512.9,18.076]
[1721415648213,5.84626,3513.4,3512.9,18.076]
[1721415648503,3.0,3513.3,3512.9,18.076]
[1721415648868,5.84625,3513.4,3512.9,18.076]
[1721415649096,3.869235,3513.4,3512.9,18.076]
[1721415649406,0.869235,3513.4,3512.9,18.076]
[1721415649621,3.0,3513.3,3512.9,18.076]
[1721415649775,5.84621,3513.5,3512.9,18.076]
[1721415650175,3.0,3513.5,3512.9,18.076]
[1721415650373,3.0,3513.6,3512.9,18.076]
[1721415650610,2.84589,3513.9,3513.0,1.8076]
[1721415650901,2.715831,3514.0,3513.1,18.076]
[1721415651412,2.84584,3513.9,3513.1,18.076]
[1721415651935,2.715831,3514.0,3513.1,18.076]
[1721415652233,0.222231,3514.0,3513.1,18.076]
[1721415652508,0.222231,3514.0,3513.2,0.74817644]
[1721415653007,0.222231,3514.0,3513.3,0.05691697]
[1721415653209,0.222231,3514.0,3513.3,18.13291697]
[1721415653788,0.222231,3514.0,3513.3,18.076]
[1721415654303,0.222231,3514.0,3513.3,20.9223]
[1721415654471,0.222231,3514.0,3513.4,1.8076]
[1721415654672,0.1726311,3514.0,3513.5,18.075]
[1721415662997,3.0184011,3514.0,3513.5,18.075]
[1721415663393,0.1726311,3514.0,3513.5,18.075]
[1721415665099,3.0184011,3514.0,3513.5,18.075]
[1721415665293,0.1726311,3514.0,3513.5,18.075]
[1721415666583,3.90478221,3514.0,3513.5,18.075]
[1721415667470,3.0,3513.9,3513.5,18.075]
[1721415667779,0.1726311,3514.0,3513.5,18.075]
[1721415669731,0.4226311,3514.0,3513.5,18.075]
[1721415670188,0.4226311,3514.0,3513.5,20.3424]
[1721415673462,0.4226311,3514.0,3513.5,18.075]
[1721415675083,0.04960604,3513.9,3513.5,18.075]
[1721415677701,0.04960604,3513.9,3513.5,19.8825]
[1721415678784,0.4226311,3514.0,3513.5,19.8825]
[1721415681184,0.4226311,3514.0,3513.5,22.7286]
[1721415682284,0.4226311,3514.0,3513.5,19.8825]
[1721415682498,0.4226311,3514.0,3513.5,18.075]
[1721415683068,2.4299,3513.9,3513.5,18.075]
[1721415683276,2.84592,3513.8,3513.5,18.075]
[1721415683751,2.4299,3513.9,3513.5,18.075]
[1721415683958,5.4299,3513.9,3513.5,18.075]
[1721415684750,3.0,3513.9,3513.5,18.075]
[1721415684958,0.4226311,3514.0,3513.5,19.8825]
[1721415685278,0.4226311,3514.0,3513.5,18.075]
[1721415688156,0.4226311,3514.0,3513.6,2.4323]
[1721415688775,0.4226311,3514.0,3513.5,18.075]
[1721415690388,0.4226311,3514.0,3513.5,20.92109]
[1721415692305,0.4226311,3514.0,3513.6,2.84607]
[1721415692504,0.4226311,3514.0,3513.7,20.167107]
[1721415695309,0.4226311,3514.0,3513.9,18.075]
[1721415699676,2.8033311,3514.0,3513.9,18.075]
[1721415700201,5.3263311,3514.0,3513.9,18.075]
[1721415701474,9.83830965,3514.0,3513.9,18.075]
[1721415701669,12.68405965,3514.0,3513.9,18.075]
[1721415701874,9.69352221,3514.0,3513.9,18.075]
[1721415702310,8.3263311,3514.0,3513.9,18.075]
[1721415702489,5.8033311,3514.0,3513.9,18.075]
[1721415705783,11.4948311,3514.0,3513.9,18.075]
[1721415705991,11.7220811,3514.0,3513.9,18.075]
[1721415706186,8.8763311,3514.0,3513.9,18.075]
[1721415706417,8.3263311,3514.0,3513.9,18.075]
[1721415707212,9.72808221,3514.0,3513.9,18.075]
[1721415707783,10.27808221,3514.0,3513.9,18.075]
[1721415707983,13.12383221,3514.0,3513.9,18.075]
[1721415708884,16.01919777,3514.0,3513.9,18.075]
[1721415710288,10.32769777,3514.0,3513.9,18.075]
[1721415710615,8.92594666,3514.0,3513.9,18.075]
[1721415711399,14.61744666,3514.0,3513.9,2.352]
[1721415711592,17.80896825,3514.0,3513.9,2.352]
[1721415711804,2.84635,3513.3,3513.0,7.39]
[1721415712015,2.84635,3513.3,3511.8,2.3324]
[1721415712016,2.523,3513.1,3512.1,7.39]
[1721415712339,2.523,3513.1,3512.1,0.97224]
[1721415712512,3.0,3513.0,3511.5,2.3324]
[1721415712829,6.3966,3513.0,3511.6,0.99011882]
[1721415713003,6.3966,3513.0,3511.5,2.3324]
[1721415713706,6.3966,3513.0,3511.1,3.4204943]
[1721415713707,2.84731,3512.1,3511.0,2.93072953]
[1721415713918,2.4952,3512.5,3511.0,0.70052037]
[1721415714090,5.4952,3512.5,3511.1,5.18044]
[1721415714291,5.4952,3512.5,3511.1,2.3324]
[1721415714292,2.4952,3512.5,3511.1,2.3324]
[1721415714535,5.4952,3512.5,3510.7,2.3324]
[1721415714735,0.55,3512.4,3510.7,2.3324]
[1721415714907,2.84727,3512.2,3510.7,2.3324]
[1721415715238,6.39705,3512.4,3510.8,0.518091]
[1721415715239,2.84729,3512.1,3510.8,0.518091]
[1721415715397,5.389,3512.0,3510.7,2.3324]
[1721415716408,2.389,3512.0,3510.7,5.18077]
[1721415716608,3.0,3511.9,3510.6,2.8485]
[1721415716811,2.389,3512.0,3510.6,2.8485]
[1721415717071,2.389,3512.0,3510.3,2.84874]
[1721415717329,2.389,3512.0,3510.1,1.48553256]
[1721415717330,2.8478,3511.5,3509.9,5.21666]
[1721415717529,3.0,3511.4,3509.9,5.21666]
[1721415718435,2.84795,3511.3,3509.9,2.3676]